lending/lending_fUSD_20250130
["ID","MTS","AMOUNT","RATE_DAILY","PERIOD"]
[350980161,1738265456620,-500.0,0.00019178,2]
[350980162,1738265456630,-509.440097,0.00019178,2]
[350980163,1738265456639,-885.16,0.00019178,2]
[350980164,1738265456650,-1525.39,0.00019178,2]
[350980165,1738265456660,-7783.59,0.00019178,2]
[350980166,1738265456687,-500.0,0.00019178,2]
[350980167,1738265456710,-500.0,0.00019178,2]
[350980168,1738265456730,-681.81,0.00019178,2]
[350980169,1738265456754,-1806.89,0.00019178,2]
[350980170,1738265456777,-500.0,0.00019178,2]
[350980171,1738265456799,-500.0,0.00019178,2]
[350980172,1738265456823,-500.0,0.00019178,2]
[350980173,1738265456847,-796.97,0.00019178,2]
[350980174,1738265456870,-1107.58,0.00019178,2]
[350980175,1738265456895,-500.0,0.00019178,2]
[350980176,1738265456917,-582.78919358,0.00019178,2]
[350980177,1738265456938,-500.0,0.00019178,2]
[350980178,1738265456954,-719.65,0.00019178,2]
[350980179,1738265456964,-584.65,0.00019178,2]
[350980180,1738265456976,-500.0,0.00019178,2]
[350980181,1738265456986,-500.0,0.00019178,2]
[350980182,1738265456996,-500.0,0.00019178,2]
[350980183,1738265457006,-636.89,0.00019178,2]
[350980184,1738265457016,-723.04,0.00019178,2]
[350980185,1738265457026,-393.370228,0.00019178,2]
[350980186,1738265457037,-500.0,0.00019178,2]
[350980187,1738265457047,-1910.0,0.00019178,2]
[350980188,1738265457058,-1244.1,0.00019178,2]
[350980189,1738265457068,-1847.71,0.00019178,2]
[350980190,1738265457079,-500.0,0.00019178,2]
[350980191,1738265457089,-614.95,0.00019178,2]
[350980192,1738265457100,-964.61,0.00019178,2]
[350980193,1738265457111,-500.0,0.00019178,2]
[350980194,1738265457121,-500.0,0.00019178,2]
[350980195,1738265457131,-1750.63,0.00019178,2]
[350980196,1738265457142,-620.95,0.00019178,2]
[350980197,1738265457152,-500.0,0.00019178,2]
[350980198,1738265457162,-7700.98,0.00019178,2]
[350980199,1738265457172,-500.0,0.00019178,2]
[350980200,1738265457183,-1321.75,0.00019178,2]
[350980201,1738265457192,-794.23,0.00019178,2]
[350980202,1738265457203,-559.22775998,0.00019178,2]
[350980203,1738265457213,-606.77241528,0.00019178,2]
[350980204,1738265457223,-6816.17,0.00019178,2]
[350980205,1738265457234,-941.04,0.00019178,2]
[350980206,1738265457244,-500.0,0.00019178,2]
[350980207,1738265457254,-500.0,0.00019178,2]
[350980208,1738265457264,-1750.87,0.00019178,2]
[350980209,1738265457281,-500.0,0.00019178,2]
[350980210,1738265457292,-500.0,0.00019178,2]
[350980211,1738265457302,-3436.83,0.00019178,2]
[350980212,1738265457313,-627.43,0.00019178,2]
[350980213,1738265457324,-500.0,0.00019178,2]
[350980214,1738265457334,-1719.85,0.00019178,2]
[350980215,1738265457345,-500.0,0.00019178,2]
[350980216,1738265457355,-500.0,0.00019178,2]
[350980217,1738265457366,-26243.63,0.00019178,2]
[350980218,1738265457377,-500.0,0.00019178,2]
[350980219,1738265457387,-500.0,0.00019178,2]
[350980220,1738265457397,-500.0,0.00019178,2]
[350980221,1738265457408,-1637.72,0.00019178,2]
[350980222,1738265457418,-500.0,0.00019178,2]
[350980223,1738265457428,-500.0,0.00019178,2]
[350980224,1738265457439,-1154.69,0.00019178,2]
[350980225,1738265457451,-500.0,0.00019178,2]
[350980226,1738265457463,-3303.51,0.00019178,2]
[350980227,1738265457473,-504.21156813,0.00019178,2]
[350980228,1738265457484,-1280.0,0.00019178,2]
[350980229,1738265457495,-501.36454919,0.00019178,2]
[350980230,1738265457507,-2992.29,0.00019178,2]
[350980231,1738265457519,-500.0,0.00019178,2]
[350980232,1738265457530,-503.22002613,0.00019178,2]
[350980233,1738265457541,-1755.75,0.00019178,2]
[350980234,1738265457551,-500.0,0.00019178,2]
[350980235,1738265457564,-500.0,0.00019178,2]
[350980236,1738265457575,-3692.12,0.00019178,2]
[350980237,1738265457585,-889.51,0.00019178,2]
[350980238,1738265457596,-500.0,0.00019178,2]
[350980239,1738265457610,-4035.42,0.00019178,2]
[350980240,1738265457621,-500.0,0.00019178,2]
[350980241,1738265457631,-500.0,0.00019178,2]
[350980242,1738265457642,-500.0,0.00019178,2]
[350980243,1738265457654,-1502.41,0.00019178,2]
[350980244,1738265457664,-615.93262043,0.00019178,2]
[350980245,1738265457675,-1408.01,0.00019178,2]
[350980246,1738265457685,-4564.15,0.00019178,2]
[350980247,1738265457698,-500.0,0.00019178,2]
[350980248,1738265457711,-1055.06,0.00019178,2]
[350980249,1738265457721,-500.0,0.00019178,2]
[350980250,1738265457732,-1878.43,0.00019178,2]
[350980251,1738265457742,-500.0,0.00019178,2]
[350980252,1738265457753,-500.0,0.00019178,2]
[350980253,1738265457768,-524.63,0.00019178,2]
[350980254,1738265457778,-505.90018574,0.00019178,2]
[350980255,1738265457789,-1634.89,0.00019178,2]
[350980256,1738265457799,-501.5746627,0.00019178,2]
[350980257,1738265457810,-500.0,0.00019178,2]
[350980258,1738265457820,-500.0,0.00019178,2]
[350980259,1738265457831,-500.0,0.00019178,2]
[350980260,1738265457841,-746.21,0.00019178,2]
[350980261,1738265457851,-1475.08,0.00019178,2]
[350980262,1738265457862,-6499.89,0.00019178,2]
[350980263,1738265457872,-500.0,0.00019178,2]
[350980264,1738265457883,-500.0,0.00019178,2]
[350980265,1738265457893,-1952.58,0.00019178,2]
[350980266,1738265457909,-500.0,0.00019178,2]
[350980267,1738265457921,-590.64274566,0.00019178,2]
[350980268,1738265457932,-500.0,0.00019178,2]
[350980269,1738265457943,-6834.65,0.00019178,2]
[350980270,1738265457954,-6545.39,0.00019178,2]
[350980271,1738265457965,-1102.74,0.00019178,2]
[350980272,1738265457977,-4579.18,0.00019178,2]
[350980273,1738265457988,-1265.17,0.00019178,2]
[350980274,1738265457998,-500.0,0.00019178,2]
[350980275,1738265458008,-500.0,0.00019178,2]
[350980276,1738265458018,-1175.39,0.00019178,2]
[350980277,1738265458029,-4200.38,0.00019178,2]
[350980278,1738265458039,-1012.23,0.00019178,2]
[350980279,1738265458050,-4186.32,0.00019178,2]
[350980280,1738265458059,-1457.97,0.00019178,2]
[350980281,1738265458069,-510.4989088,0.00019178,2]
[350980282,1738265458079,-500.0,0.00019178,2]
[350980283,1738265458090,-501.57008576,0.00019178,2]
[350980284,1738265458100,-500.0,0.00019178,2]
[350980285,1738265458111,-500.0,0.00019178,2]
[350980286,1738265458122,-500.0,0.00019178,2]
[350980287,1738265458133,-500.0,0.00019178,2]
[350980288,1738265458143,-500.0,0.00019178,2]
[350980289,1738265458153,-500.0,0.00019178,2]
[350980290,1738265458164,-1090.61,0.00019178,2]
[350980291,1738265458174,-1046.01,0.00019178,2]
[350980292,1738265458184,-500.0,0.00019178,2]
[350980293,1738265458195,-1213.02,0.00019178,2]
[350980294,1738265458207,-500.0,0.00019178,2]
[350980295,1738265458217,-500.0,0.00019178,2]
[350980296,1738265458228,-1949.44,0.00019178,2]
[350980297,1738265458239,-7623.84,0.00019178,2]
[350980298,1738265458250,-500.0,0.00019178,2]
[350980299,1738265458260,-870.74,0.00019178,2]
[350980300,1738265458270,-1053.89,0.00019178,2]
[350980301,1738265458281,-567.29,0.00019178,2]
[350980302,1738265458292,-500.0,0.00019178,2]
[350980303,1738265458302,-533.09,0.00019178,2]
[350980304,1738265458312,-385.365805,0.00019178,2]
[350980305,1738265458324,-830.8,0.00019178,2]
[350980306,1738265458334,-1474.65,0.00019178,2]
[350980307,1738265458344,-500.0,0.00019178,2]
[350980308,1738265458354,-500.0,0.00019178,2]
[350980309,1738265458365,-868.63,0.00019178,2]
[350980310,1738265458374,-1293.31,0.00019178,2]
[350980311,1738265458385,-500.0,0.00019178,2]
[350980312,1738265458396,-627.72,0.00019178,2]
[350980313,1738265458406,-2287.76,0.00019178,2]
[350980314,1738265458416,-500.0,0.00019178,2]
[350980315,1738265458427,-1028.19,0.00019178,2]
[350980316,1738265458437,-500.0,0.00019178,2]
[350980317,1738265458448,-4034.78,0.00019178,2]
[350980318,1738265458459,-1843.31,0.00019178,2]
[350980319,1738265458469,-510.49797432,0.00019178,2]
[350980320,1738265458479,-500.0,0.00019178,2]
[350980321,1738265458489,-500.0,0.00019178,2]
[350980322,1738265458499,-500.0,0.00019178,2]
[350980323,1738265458509,-500.0,0.00019178,2]
[350980324,1738265458520,-551.91,0.00019178,2]
[350980325,1738265458531,-1494.55,0.00019178,2]
[350980326,1738265458543,-886.37,0.00019178,2]
[350980327,1738265458552,-506.33822527,0.00019178,2]
[350980328,1738265458563,-500.0,0.00019178,2]
[350980329,1738265458573,-604.92,0.00019178,2]
[350980330,1738265458583,-500.0,0.00019178,2]
[350980331,1738265458594,-504.4319237,0.00019178,2]
[350980332,1738265458604,-648.22,0.00019178,2]
[350980333,1738265458615,-905.13,0.00019178,2]
[350980334,1738265458625,-365.310129,0.00019178,2]
[350980335,1738265458636,-2122.8,0.00019178,2]
[350980336,1738265458647,-986.13,0.00019178,2]
[350980337,1738265458656,-1768.01,0.00019178,2]
[350980338,1738265458666,-4924.01,0.00019178,2]
[350980339,1738265458676,-946.65,0.00019178,2]
[350980340,1738265458686,-500.0,0.00019178,2]
[350980341,1738265458696,-1877.8,0.00019178,2]
[350980342,1738265458706,-500.0,0.00019178,2]
[350980343,1738265458716,-500.0,0.00019178,2]
[350980344,1738265458725,-1409.94,0.00019178,2]
[350980345,1738265458735,-2044.68,0.00019178,2]
[350980346,1738265458745,-3785.62,0.00019178,2]
[350980347,1738265458755,-500.0,0.00019178,2]
[350980348,1738265458765,-1221.89,0.00019178,2]
[350980349,1738265458776,-500.0,0.00019178,2]
[350980350,1738265458787,-5524.94,0.00019178,2]
[350980351,1738265458797,-500.0,0.00019178,2]
[350980352,1738265458807,-500.0,0.00019178,2]
[350980353,1738265458817,-500.0,0.00019178,2]
[350980354,1738265458828,-816.06,0.00019178,2]
[350980355,1738265458837,-500.0,0.00019178,2]
[350980356,1738265458847,-500.0,0.00019178,2]
[350980357,1738265458858,-337.726608,0.00019178,2]
[350980358,1738265458869,-1062.54,0.00019178,2]
[350980359,1738265458880,-3734.65,0.00019178,2]
[350980360,1738265458891,-843.72,0.00019178,2]
[350980361,1738265458903,-1503.9,0.00019178,2]
[350980362,1738265458915,-898.29,0.00019178,2]
[350980363,1738265458925,-500.0,0.00019178,2]
[350980364,1738265458935,-2022.42,0.00019178,2]
[350980365,1738265458946,-500.0,0.00019178,2]
[350980366,1738265458958,-500.0,0.00019178,2]
[350980367,1738265458968,-730.52,0.00019178,2]
[350980368,1738265458980,-500.0,0.00019178,2]
[350980369,1738265458990,-1766.81,0.00019178,2]
[350980370,1738265459001,-500.0,0.00019178,2]
[350980371,1738265459011,-500.0,0.00019178,2]
[350980372,1738265459021,-2062.02,0.00019178,2]
[350980373,1738265459032,-500.0,0.00019178,2]
[350980374,1738265459042,-500.0,0.00019178,2]
[350980375,1738265459052,-2932.51,0.00019178,2]
[350980376,1738265459062,-1305.19,0.00019178,2]
[350980377,1738265459073,-687.23,0.00019178,2]
[350980378,1738265459083,-500.0,0.00019178,2]
[350980379,1738265459093,-501.26049239,0.00019178,2]
[350980380,1738265459104,-500.0,0.00019178,2]
[350980381,1738265459116,-1265.3,0.00019178,2]
[350980382,1738265459127,-500.0,0.00019178,2]
[350980383,1738265459141,-346.828824,0.00019178,2]
[350980384,1738265459152,-500.0,0.00019178,2]
[350980385,1738265459163,-1690.09,0.00019178,2]
[350980386,1738265459173,-605.72,0.00019178,2]
[350980387,1738265459184,-500.0,0.00019178,2]
[350980388,1738265459195,-1324.31,0.00019178,2]
[350980389,1738265459205,-1051.11,0.00019178,2]
[350980390,1738265459216,-1007.36,0.00019178,2]
[350980391,1738265459226,-1390.04,0.00019178,2]
[350980392,1738265459237,-637.66501696,0.00019178,2]
[350980393,1738265459248,-500.0,0.00019178,2]
[350980394,1738265459258,-553.4,0.00019178,2]
[350980395,1738265459269,-500.0,0.00019178,2]
[350980396,1738265459281,-500.0,0.00019178,2]
[350980397,1738265459292,-2244.44,0.00019178,2]
[350980398,1738265459304,-4342.62,0.00019178,2]
[350980399,1738265459315,-1596.46,0.00019178,2]
[350980400,1738265459327,-3783.9,0.00019178,2]
[350980401,1738265459338,-500.0,0.00019178,2]
[350980402,1738265459350,-1565.22,0.00019178,2]
[350980403,1738265459362,-564.85653766,0.00019178,2]
[350980404,1738265459614,-500.0,0.00019178,2]
[350980405,1738265459628,-500.0,0.00019178,2]
[350980406,1738265459638,-699.33,0.00019178,2]
[350980407,1738265459648,-500.0,0.00019178,2]
[350980408,1738265459659,-502.84860879,0.00019178,2]
[350980409,1738265459668,-583.91,0.00019178,2]
[350980410,1738265459679,-500.0,0.00019178,2]
[350980411,1738265459689,-500.0,0.00019178,2]
[350980412,1738265459699,-1121.52,0.00019178,2]
[350980413,1738265459710,-500.0,0.00019178,2]
[350980414,1738265459720,-930.84,0.00019178,2]
[350980415,1738265459730,-633.62,0.00019178,2]
[350980416,1738265459740,-990.2,0.00019178,2]
[350980417,1738265459750,-1746.7,0.00019178,2]
[350980418,1738265459761,-1096.25,0.00019178,2]
[350980419,1738265459770,-852.57,0.00019178,2]
[350980420,1738265459781,-513.1488095,0.00019178,2]
[350980421,1738265459790,-1886.85,0.00019178,2]
[350980422,1738265459800,-703.96,0.00019178,2]
[350980423,1738265459810,-505.56169964,0.00019178,2]
[350980424,1738265459820,-500.0,0.00019178,2]
[350980425,1738265459830,-416.62565022,0.00019178,2]
[350980426,1738265459840,-500.0,0.00019178,2]
[350980427,1738265459851,-500.0,0.00019178,2]
[350980428,1738265459860,-1247.2,0.00019178,2]
[350980429,1738265459870,-500.0,0.00019178,2]
[350980430,1738265459880,-1472.66,0.00019178,2]
[350980431,1738265459890,-2533.28,0.00019178,2]
[350980432,1738265459900,-500.0,0.00019178,2]
[350980433,1738265459914,-500.0,0.00019178,2]
[350980434,1738265459924,-629.97,0.00019178,2]
[350980435,1738265459934,-500.0,0.00019178,2]
[350980436,1738265459944,-969.24,0.00019178,2]
[350980437,1738265459954,-3212.71,0.00019178,2]
[350980438,1738265459964,-1368.95,0.00019178,2]
[350980439,1738265459975,-500.0,0.00019178,2]
[350980440,1738265459986,-541.66,0.00019178,2]
[350980441,1738265459997,-150.61,0.00019178,2]
[350980442,1738265460007,-152.17950909,0.0001918,2]
[350980443,1738265460017,-1000.0,0.00019206,2]
[350980444,1738265460027,-631.0013,0.00019206,2]
[350980445,1738265460039,-20809.77266525,0.00019213,2]
[350980446,1738265460050,-200.0,0.00019234,2]
[350980447,1738265460060,-615.99,0.00019251,3]
[350980448,1738265460070,-592.88727405,0.00019259,2]
[350980449,1738265460081,-211.0,0.0001927,2]
[350980450,1738265460090,-658.22,0.00019273,2]
[350980451,1738265460102,-7941.59017781,0.00019279,2]
[350980452,1738265460113,-200.0,0.0001928,2]
[350980453,1738265460123,-1000.0,0.00019282,2]
[350980454,1738265460133,-121645.29580997,0.000193,2]
[350980455,1738265460143,-180.0825014,0.00019305,2]
[350980456,1738265460153,-615.99,0.00019314,3]
[350980457,1738265460163,-615.99,0.00019314,3]
[350980458,1738265460173,-615.99,0.00019314,3]
[350980459,1738265460183,-615.99,0.00019314,3]
[350980460,1738265460193,-615.99,0.00019314,3]
[350980461,1738265460203,-615.99,0.00019314,3]
[350980462,1738265460214,-615.99,0.00019314,3]
[350980463,1738265460224,-616.08706121,0.00019314,3]
[350980464,1738265460234,-687.663554,0.00019315,3]
[350980465,1738265460244,-500.0,0.00019315,3]
[350980466,1738265460255,-508.97179528,0.00019315,3]
[350980467,1738265460266,-500.0,0.00019315,3]
[350980468,1738265460276,-500.0,0.00019315,3]
[350980469,1738265460289,-500.0,0.00019315,3]
[350980470,1738265460298,-500.0,0.00019315,3]
[350980471,1738265460308,-334.01453175,0.00019315,3]
[350980472,1738265460318,-500.0,0.00019315,3]
[350980473,1738265460328,-500.0,0.00019315,3]
[350980474,1738265460339,-1153.031615,0.00019315,3]
[350980475,1738265460349,-500.0,0.00019315,3]
[350980476,1738265460360,-500.0,0.00019315,3]
[350980477,1738265460370,-500.0,0.00019315,3]
[350980478,1738265460381,-602.92,0.00019315,3]
[350980479,1738265460391,-500.0,0.00019315,3]
[350980480,1738265460401,-500.0,0.00019315,3]
[350980481,1738265460411,-761.32,0.00019315,3]
[350980482,1738265460421,-501.13617712,0.00019315,3]
[350980483,1738265460432,-500.0,0.00019315,3]
[350980484,1738265460441,-540.09,0.00019315,3]
[350980485,1738265460452,-500.0,0.00019315,3]
[350980486,1738265460462,-500.0,0.00019315,3]
[350980487,1738265460472,-759.07,0.00019315,3]
[350980488,1738265460482,-500.0,0.00019315,3]
[350980489,1738265460492,-500.0,0.00019315,3]
[350980490,1738265460503,-500.0,0.00019315,3]
[350980491,1738265460514,-500.0,0.00019315,3]
[350980492,1738265460524,-500.0,0.00019315,3]
[350980493,1738265460535,-503.30469451,0.00019315,3]
[350980494,1738265460546,-500.0,0.00019315,3]
[350980495,1738265460556,-500.0,0.00019315,3]
[350980496,1738265460566,-500.0,0.00019315,3]
[350980497,1738265460576,-500.0,0.00019315,3]
[350980498,1738265460586,-500.0,0.00019315,3]
[350980499,1738265460595,-500.0,0.00019315,3]
[350980500,1738265460604,-500.0,0.00019315,3]
[350980501,1738265460614,-500.0,0.00019315,3]
[350980502,1738265460623,-502.51463091,0.00019315,2]
[350980503,1738265460633,-500.0,0.00019315,3]
[350980504,1738265460642,-502.90988778,0.00019315,3]
[350980505,1738265460651,-343.97095135,0.00019315,3]
[350980506,1738265460660,-500.0,0.00019315,3]
[350980507,1738265460670,-500.0,0.00019315,3]
[350980508,1738265460680,-500.0,0.00019315,3]
[350980509,1738265460690,-500.0,0.00019315,3]
[350980510,1738265460699,-771.56,0.00019315,3]
[350980511,1738265460710,-500.0,0.00019315,3]
[350980512,1738265460720,-834.88,0.00019315,3]
[350980513,1738265460730,-500.0,0.00019315,3]
[350980514,1738265460740,-509.99,0.00019315,3]
[350980515,1738265460751,-500.0,0.00019315,3]
[350980516,1738265460760,-500.0,0.00019315,3]
[350980517,1738265460770,-500.0,0.00019315,3]
[350980518,1738265460781,-500.0,0.00019315,3]
[350980519,1738265460790,-500.0,0.00019315,3]
[350980520,1738265460801,-500.0,0.00019315,3]
[350980521,1738265460811,-612.58848042,0.00019315,3]
[350980522,1738265460822,-959.3,0.00019315,3]
[350980523,1738265460832,-500.0,0.00019315,3]
[350980524,1738265460842,-500.0,0.00019315,3]
[350980525,1738265460852,-500.0,0.00019315,3]
[350980526,1738265460862,-500.0,0.00019315,3]
[350980527,1738265460872,-857.47,0.00019315,3]
[350980528,1738265460881,-500.0,0.00019315,3]
[350980529,1738265460891,-500.0,0.00019315,3]
[350980530,1738265460902,-500.0,0.00019315,3]
[350980531,1738265460915,-500.0,0.00019315,3]
[350980532,1738265460926,-500.0,0.00019315,3]
[350980533,1738265460935,-500.0,0.00019315,3]
[350980534,1738265460945,-500.0,0.00019315,3]
[350980535,1738265460955,-500.0,0.00019315,3]
[350980536,1738265460966,-506.07,0.00019315,3]
[350980537,1738265460976,-500.0,0.00019315,3]
[350980538,1738265460989,-500.0,0.00019315,3]
[350980539,1738265460999,-500.0,0.00019315,3]
[350980540,1738265461009,-500.0,0.00019315,3]
[350980541,1738265461019,-1422.24,0.00019315,3]
[350980542,1738265461031,-500.0,0.00019315,3]
[350980543,1738265461041,-500.0,0.00019315,3]
[350980544,1738265461051,-534.34844371,0.00019315,3]
[350980545,1738265461061,-500.0,0.00019315,3]
[350980546,1738265461070,-503.70416984,0.00019315,3]
[350980547,1738265461080,-500.0,0.00019315,3]
[350980548,1738265461090,-500.0,0.00019315,3]
[350980549,1738265461100,-500.0,0.00019315,3]
[350980550,1738265461113,-500.0,0.00019315,3]
[350980551,1738265461122,-500.0,0.00019315,3]
[350980552,1738265461132,-501.06106823,0.00019315,3]
[350980553,1738265461141,-500.0,0.00019315,3]
[350980554,1738265461151,-500.0,0.00019315,3]
[350980555,1738265461161,-1000.0,0.00019315,3]
[350980556,1738265461171,-660.77,0.00019315,3]
[350980557,1738265461181,-500.0,0.00019315,3]
[350980558,1738265461190,-500.0,0.00019315,3]
[350980559,1738265461200,-508.44940826,0.00019315,3]
[350980560,1738265461210,-500.0,0.00019315,3]
[350980561,1738265461220,-500.0,0.00019315,3]
[350980562,1738265461230,-500.0,0.00019315,3]
[350980563,1738265461240,-500.0,0.00019315,3]
[350980564,1738265461250,-500.0,0.00019315,3]
[350980565,1738265461260,-500.0,0.00019315,3]
[350980566,1738265461270,-488.90033989,0.00019315,3]
[350980567,1738265461281,-500.0,0.00019315,3]
[350980568,1738265461291,-500.0,0.00019315,3]
[350980569,1738265461301,-500.0,0.00019315,3]
[350980570,1738265461311,-500.0,0.00019315,3]
[350980571,1738265461321,-500.0,0.00019315,3]
[350980572,1738265461330,-500.0,0.00019315,3]
[350980573,1738265461340,-500.0,0.00019315,3]
[350980574,1738265461350,-500.0,0.00019315,3]
[350980575,1738265461361,-500.0,0.00019315,3]
[350980576,1738265461370,-500.0,0.00019315,3]
[350980577,1738265461380,-500.0,0.00019315,3]
[350980578,1738265461391,-500.0,0.00019315,3]
[350980579,1738265461401,-500.0,0.00019315,3]
[350980580,1738265461412,-500.0,0.00019315,3]
[350980581,1738265461422,-500.0,0.00019315,3]
[350980582,1738265461433,-500.0,0.00019315,3]
[350980583,1738265461443,-500.0,0.00019315,3]
[350980584,1738265461453,-500.0,0.00019315,3]
[350980585,1738265461464,-500.0,0.00019315,3]
[350980586,1738265461474,-855.0,0.00019315,3]
[350980587,1738265461483,-500.0,0.00019315,3]
[350980588,1738265461493,-506.58,0.00019315,3]
[350980589,1738265461503,-500.0,0.00019315,3]
[350980590,1738265461512,-500.4237816,0.00019315,3]
[350980591,1738265461522,-500.0,0.00019315,3]
[350980592,1738265461533,-500.0,0.00019315,3]
[350980593,1738265461542,-500.0,0.00019315,3]
[350980594,1738265461552,-500.0,0.00019315,3]
[350980595,1738265461561,-500.0,0.00019315,3]
[350980596,1738265461571,-500.0,0.00019315,3]
[350980597,1738265461581,-500.0,0.00019315,3]
[350980598,1738265461591,-502.43979428,0.00019315,3]
[350980599,1738265461601,-500.0,0.00019315,3]
[350980600,1738265461610,-500.0,0.00019315,3]
[350980601,1738265461619,-500.0,0.00019315,3]
[350980602,1738265461629,-500.0,0.00019315,3]
[350980603,1738265461639,-500.0,0.00019315,3]
[350980604,1738265461649,-500.0,0.00019315,3]
[350980605,1738265461658,-500.0,0.00019315,3]
[350980606,1738265461668,-500.0,0.00019315,3]
[350980607,1738265461678,-504.44089814,0.00019315,3]
[350980608,1738265461688,-500.0,0.00019315,3]
[350980609,1738265461699,-500.0,0.00019315,3]
[350980610,1738265461709,-449.86312585,0.00019315,3]
[350980611,1738265461719,-500.0,0.00019315,3]
[350980612,1738265461729,-500.0,0.00019315,3]
[350980613,1738265461739,-500.0,0.00019315,3]
[350980614,1738265461749,-500.0,0.00019315,3]
[350980615,1738265461759,-500.0,0.00019315,3]
[350980616,1738265461769,-918.44,0.00019315,3]
[350980617,1738265461780,-500.0,0.00019315,3]
[350980618,1738265461789,-500.0,0.00019315,3]
[350980619,1738265461799,-1021.42,0.00019315,3]
[350980620,1738265461810,-500.0,0.00019315,3]
[350980621,1738265461822,-500.0,0.00019315,3]
[350980622,1738265461839,-500.0,0.00019315,3]
[350980623,1738265461848,-644.53,0.00019315,3]
[350980624,1738265461858,-500.0,0.00019315,3]
[350980625,1738265461868,-500.0,0.00019315,3]
[350980626,1738265461879,-500.0,0.00019315,3]
[350980627,1738265461888,-500.0,0.00019315,3]
[350980628,1738265461899,-500.0,0.00019315,3]
[350980629,1738265461912,-816.39,0.00019315,3]
[350980630,1738265461922,-1030.03,0.00019315,3]
[350980631,1738265461932,-542.97016694,0.00019315,3]
[350980632,1738265461942,-500.0,0.00019315,3]
[350980633,1738265461953,-500.0,0.00019315,3]
[350980634,1738265461963,-500.0,0.00019315,3]
[350980635,1738265461973,-500.0,0.00019315,3]
[350980636,1738265461986,-500.0,0.00019315,3]
[350980637,1738265461996,-503.72,0.00019315,3]
[350980638,1738265462094,-500.0,0.00019315,3]
[350980639,1738265462105,-504.66372015,0.00019315,3]
[350980640,1738265462115,-500.0,0.00019315,3]
[350980641,1738265462126,-500.0,0.00019315,3]
[350980642,1738265462135,-500.0,0.00019315,3]
[350980643,1738265462145,-500.0,0.00019315,3]
[350980644,1738265462155,-500.0,0.00019315,3]
[350980645,1738265462163,-500.0,0.00019315,3]
[350980646,1738265462173,-500.0,0.00019315,3]
[350980647,1738265462182,-204.61,0.00019315,3]
[350980648,1738265462191,-500.0,0.00019315,3]
[350980649,1738265462201,-500.0,0.00019315,3]
[350980650,1738265462212,-502.02571548,0.00019315,3]
[350980651,1738265462223,-500.0,0.00019315,3]
[350980652,1738265462232,-500.0,0.00019315,3]
[350980653,1738265462242,-500.0,0.00019315,3]
[350980654,1738265462252,-500.0,0.00019315,3]
[350980655,1738265462262,-500.0,0.00019315,3]
[350980656,1738265462272,-500.0,0.00019315,3]
[350980657,1738265462283,-500.0,0.00019315,3]
[350980658,1738265462293,-500.0,0.00019315,3]
[350980659,1738265462302,-500.0,0.00019315,3]
[350980660,1738265462311,-500.0,0.00019315,3]